Workbook

Sheet INSTRUCTIONS
A1: K to 12 E-Class Record Manual
A2: 1 | B2: Print out this class record in every grading period
A3: 2 | B3: Make sure to have a back-up file with a different file name
A4: 3 | B4: It is advisable to save the back-up file in the cloud(e.g. GOOGLE DRIVE,DROP BOX, ECT..)
A5: 4 | B5: Avoid computer viruses by using flash drives into different computers
A6: 5 | B6: In cases of virus infections do not reformat the storage device and contact your ICT Coordinator for file recovery
A7: 6 | B7: Formulas autimatically adjust to the number of assessments
A8: 8 | B8: Copy paste formulas for the succeeding students
A9: 9 | B9: If there is a confirmation to enable a MACRO (click ENABLE to activate the Add buttons)
A11: OPEN SOURCE FILE:
A12: 1 | B12: You can innovate this file
A13: 2 | B13: You can distribute this file
B16: ENJOY!
B18: From: Schools Division of Bacolod City
B19: Website: | C19: gg.gg/depedbacolodcity

Sheet CLASS RECORD
A1: Section Counselor: | E1: SCHOOL:
A2: GRADE & SECTION: | E2: Summative Assessment:Written Work(WW),Performance Task(PT),& Quarterly Assessment(QA) | AC2: Initial Grade | AD2: Transmuted | AE2: Remarks
A3: SUBJECT:SCIENCE | E3: (WW) | K3: TOTAL | L3: P.Score | M3: Wt. | N3: (PT) | T3: TOTAL | U3: P.Score | V3: Wt. | X3: (QA) | Z3: (QA) Total | AA3: P.Score | AB3: Wt.
B4: BOYS | D4: ITEM | E4: WW1 | F4: WW2 | G4: WW3 | H4: WW4 | I4: WW5 | N4: PT1 | O4: PT2 | P4: PT3 | Q4: PT4 | R4: PT5 | W4: Written | X4: Performance
E5: 40 | F5: 40 | G5: 40 | H5: 40 | I5: 40 | K5: =SUM(E5:I5) -> 200 | M5: 0.35 | N5: 40 | O5: 40 | P5: 40 | Q5: 40 | R5: 40 | T5: =SUM(N5:S5) -> 200 | V5: 0.4 | W5: 50 | Z5: =SUM(W5:Y5) -> 50 | AB5: 0.25
A6: No. | B6: LAST NAME | C6: FIRST NAME | D6: M.I. | J6: WWEND | S6: PTEND | Y6: QAEND | AF6: No.
A7: 1 | B7: Dela Cruz | C7: Juan Mario Makisig | D7: R | E7: 40 | F7: 40 | G7: 20 | H7: 40 | I7: 20 | K7: =SUM(E7:I7) -> 160 | L7: =(K7/($K$5)*100) -> 80 | M7: =L7*0.35 -> 28 | N7: 32 | O7: 45 | P7: 40 | Q7: 20 | R7: 40 | T7: =SUM(N7:S7) -> 177 | U7: =(T7/$T$5)*100 -> 88.5 | V7: =U7*0.4 -> 35.4 | W7: 45 | Z7: =SUM(W7:Y7) -> 45 | AA7: =(Z7/$Z$5*100) -> 90 | AB7: =AA7*0.25 -> 22.5 | AC7: =ROUND(M7+V7+AB7,2) -> 85.9 | AD7: =IF(AC7=100,"100",IF(AND(AC7>=98.4,AC7<=99.99),"99",IF(AND(AC7>=96.8,AC7<=98.39),"98",IF(AND(AC7>=95.2,AC7<=96.79),"97",IF(AND(AC7>=93.6,AC7<=95.19),"96",IF(AND(AC7>=92,AC7<=93.59),"95",IF(AND(AC7>=90.4,AC7<=91.99),"94",IF(AND(AC7>=88.8,AC7<=90.39),"93",IF(AND(AC7>=87.2,AC7<=88.79),"92",IF(AND(AC7>=85.6,AC7<=87.19),"91",IF(AND(AC7>=84,AC7<=85.59),"90",IF(AND(AC7>=82.4,AC7<=83.99),"89",IF(AND(AC7>=80.8,AC7<=82.39),"88",IF(AND(AC7>=79.2,AC7<=80.79),"87",IF(AND(AC7>=77.6,AC7<=79.19),"86",IF(AND(AC7>=76,AC7<=77.59),"85",IF(AND(AC7>=74,AC7<=75.99),"84",IF(AND(AC7>=72.8,AC7<=74.39),"83",IF(AND(AC7>=71.2,AC7<=72.79),"82",IF(AND(AC7>=69.6,AC7<=71.19),"81",IF(AND(AC7>=68,AC7<=69.59),"80",IF(AND(AC7>=66.4,AC7<=67.99),"79",IF(AND(AC7>=64.8,AC7<=66.39),"78",IF(AND(AC7>=63.2,AC7<=64.79),"77",IF(AND(AC7>=61.6,AC7<=63.19),"76",IF(AND(AC7>=60,AC7<=61.59),"75",IF(AND(AC7>=56,AC7<=59.99),"74",IF(AND(AC7>=52,AC7<=55.99),"73",IF(AND(AC7>=48,AC7<=51.99),"72",IF(AND(AC7>=44,AC7<=47.99),"71",IF(AND(AC7>=40,AC7<=43.99),"70",IF(AND(AC7>=36,AC7<=39.99),"69",IF(AND(AC7>=32,AC7<=35.99),"68",IF(AND(AC7>=28,AC7<=31.99),"67",IF(AND(AC7>=24,AC7<=27.99),"66",IF(AND(AC7>=20,AC7<=23.99),"65",IF(AND(AC7>=16,AC7<=19.99),"64",IF(AND(AC7>=12,AC7<=15.99),"63",IF(AND(AC7>=8,AC7<=11.99),"62",IF(AND(AC7>=4,AC7<=7.99),"61",IF(AND(AC7>=0,AC7<=3.99),"60","Not Applicable"))))))))))))))))))))))))))))))))))))))))) -> 91 | AE7: =IF(AD7>="75","Passed","Failed") -> Passed | AF7: 1
A8: 2 | B8: Ibara | C8: Crisostomo | D8: B | E8: 30 | F8: 30 | G8: 30 | H8: 40 | I8: 23 | K8: =SUM(E8:I8) -> 153 | L8: =(K8/($K$5)*100) -> 76.5 | M8: =L8*0.35 -> 26.775 | N8: 35 | O8: 30 | P8: 21 | Q8: 21 | R8: 32 | T8: =SUM(N8:S8) -> 139 | U8: =(T8/200)*100 -> 69.5 | V8: =U8*0.4 -> 27.8 | W8: 32 | Z8: =SUM(W8:Y8) -> 32 | AA8: =(Z8/$Z$5*100) -> 64 | AB8: =AA8*0.25 -> 16 | AC8: =ROUND(M8+V8+AB8,2) -> 70.58 | AD8: 81 | AE8: =IF(AD8>="75","Passed","Failed") -> Passed | AF8: 2
A9: 3 | B9: Malaya | C9: Pedro | D9: L | E9: 32 | F9: 32 | G9: 21 | H9: 12 | I9: 5 | K9: =SUM(E9:I9) -> 102 | L9: =(K9/($K$5)*100) -> 51 | M9: 17.85 | N9: 23 | O9: 11 | P9: 0 | Q9: 0 | R9: 35 | T9: =SUM(N9:S9) -> 69 | U9: =(T9/200)*100 -> 34.5 | V9: 13.8 | W9: 34 | Z9: =SUM(W9:Y9) -> 34 | AA9: =(Z9/$Z$5*100) -> 68 | AB9: 17 | AC9: =ROUND(M9+V9+AB9,2) -> 48.65 | AD9: 72 | AE9: =IF(AD9>="75","Passed","Failed") -> Failed | AF9: 3
A15: No. | B15: GIRLS | AF15: No.
A16: 1 | B16: Dela Cruz | C16: Janice | D16: D
A17: 2 | B17: Bloom | C17: Cristine | D17: M
A18: 3 | B18: Makiling | C18: Maria | D18: D
B23: END | C23: END
A24: No. of students | E24: =COUNT(E7:E23) -> 3 | F24: =COUNT(F7:F23) -> 3 | G24: =COUNT(G7:G23) -> 3 | H24: =COUNT(H7:H23) -> 3 | I24: =COUNT(I7:I23) -> 3 | N24: =COUNT(N7:N23) -> 3 | O24: =COUNT(O7:O23) -> 3 | P24: =COUNT(P7:P23) -> 3 | Q24: =COUNT(Q7:Q23) -> 3 | R24: =COUNT(R7:R23) -> 3 | W24: =COUNT(W7:W23) -> 3
A25: No. of items | E25: =E5 -> 40 | F25: =F5 -> 40 | G25: =G5 -> 40 | H25: =H5 -> 40 | I25: =I5 -> 40 | N25: =N5 -> 40 | O25: =O5 -> 40 | P25: =P5 -> 40 | Q25: =Q5 -> 40 | R25: =R5 -> 40 | W25: =W5 -> 50
A26: Mean | E26: =AVERAGE(E7:E23) -> 34 | F26: =AVERAGE(F7:F23) -> 34 | G26: =AVERAGE(G7:G23) -> 23.66666667 | H26: =AVERAGE(H7:H23) -> 30.66666667 | I26: =AVERAGE(I7:I23) -> 16 | N26: =AVERAGE(N7:N23) -> 30 | O26: =AVERAGE(O7:O23) -> 28.66666667 | P26: =AVERAGE(P7:P23) -> 20.33333333 | Q26: =AVERAGE(Q7:Q23) -> 13.66666667 | R26: =AVERAGE(R7:R23) -> 35.66666667 | W26: =AVERAGE(W7:W23) -> 37
A27: Proficiency Level(PL) | E27: =(SUM(E7:E23)/(E24*E25))*100 -> 85 | F27: =(SUM(F7:F23)/(F24*F25))*100 -> 85 | G27: =(SUM(G7:G23)/(G24*G25))*100 -> 59.16666667 | H27: =(SUM(H7:H23)/(H24*H25))*100 -> 76.66666667 | I27: =(SUM(I7:I23)/(I24*I25))*100 -> 40 | N27: =(SUM(N7:N23)/(N24*N25))*100 -> 75 | O27: =(SUM(O7:O23)/(O24*O25))*100 -> 71.66666667 | P27: =(SUM(P7:P23)/(P24*P25))*100 -> 50.83333333 | Q27: =(SUM(Q7:Q23)/(Q24*Q25))*100 -> 34.16666667 | R27: =(SUM(R7:R23)/(R24*R25))*100 -> 89.16666667 | W27: =(SUM(W7:W23)/(W24*W25))*100 -> 74

Sheet FORMATIVE TEST
A1: Section Counselor: | E1: SCHOOL:
A2: GRADE & SECTION: | E2: Formative Assessment
A3: SUBJECT:
B4: LAST NAME | C4: FIRST NAME | D4: M.I. | E4: FT1 | F4: FT2 | G4: FT3 | H4: FT4 | I4: FT5 | J4: FT6 | K4: FT7 | L4: FT8 | M4: FT9 | N4: FT10 | O4: FT11 | P4: FT12 | Q4: FT13 | R4: FT14 | S4: FT15 | T4: FT16 | U4: FT17 | V4: FT18 | W4: FT19 | X4: FT20
E5: 10 | F5: 10 | G5: 10 | H5: 10 | I5: 10 | J5: 10 | K5: 10 | L5: 10 | M5: 10 | N5: 10 | O5: 10 | P5: 10 | Q5: 10 | R5: 10 | S5: 10 | T5: 10 | U5: 10 | V5: 10 | W5: 10 | X5: 10
A6: No. | B6: BOYS | Y6: No.
A7: 1 | B7: Dela Cruz | C7: Juan | D7: R | E7: 4 | F7: 6 | G7: 9 | H7: 6 | I7: 8 | J7: 3 | K7: 7 | L7: 7 | M7: 9 | N7: 8 | O7: 9 | P7: 7 | Q7: 8 | R7: 8 | S7: 8 | T7: 10 | U7: 8 | V7: 8 | W7: 7 | X7: 8 | Y7: 1
A8: 2 | B8: Ibara | C8: Crisostomo | D8: B | E8: 5 | F8: 8 | G8: 3 | H8: 5 | I8: 7 | J8: 7 | K8: 8 | L8: 9 | M8: 7 | N8: 7 | O8: 7 | P8: 6 | Q8: 8 | R8: 5 | S8: 10 | T8: 9 | U8: 8 | V8: 8 | W8: 6 | X8: 5 | Y8: 2
A9: 3 | B9: Makiling | C9: Maria | D9: L | E9: 6 | F9: 7 | G9: 7 | H9: 5 | I9: 7 | J9: 9 | K9: 9 | L9: 8 | M9: 8 | N9: 7 | O9: 8 | P9: 8 | Q9: 8 | R9: 4 | S9: 6 | T9: 7 | U9: 9 | V9: 9 | W9: 8 | X9: 4 | Y9: 3
A10: 4 | Y10: 4
A11: 5 | Y11: 5
A12: 6 | Y12: 6
A13: 7 | Y13: 7
A14: 8 | Y14: 8
A15: 9 | Y15: 9
A16: 10 | Y16: 10
A17: 11 | Y17: 11
A18: 12 | Y18: 12
A19: 13 | Y19: 13
A20: 14 | Y20: 14
A21: 15 | Y21: 15
A22: 16 | Y22: 16
A23: 17 | Y23: 17
A24: 18 | Y24: 18
A25: 19 | Y25: 19
A26: 20 | Y26: 20
A27: 21 | Y27: 21
A28: 22 | Y28: 22
A29: 23 | Y29: 23
A30: 24 | Y30: 24
A31: 25 | Y31: 25
A32: No. | B32: GIRLS | Y32: No.
A33: 1 | Y33: 1
A34: 2 | Y34: 2
A35: 3 | Y35: 3
A36: 4 | Y36: 4
A37: 5 | Y37: 5
A38: 6 | Y38: 6
A39: 7 | Y39: 7
A40: 8 | Y40: 8
A41: 9 | Y41: 9
A42: 10 | Y42: 10
A43: 11 | Y43: 11
A44: 12 | Y44: 12
A45: 13 | Y45: 13
A46: 14 | Y46: 14
A47: 15 | Y47: 15
A48: 16 | Y48: 16
A49: 17 | Y49: 17
A50: 18 | Y50: 18
A51: 19 | Y51: 19
A52: 20 | Y52: 20
A53: 21 | Y53: 21
A54: 22 | Y54: 22
A55: 23 | Y55: 23
A56: 24 | Y56: 24
A57: 25 | Y57: 25
A58: No. of students | E58: =COUNT(E7:E57) -> 3 | F58: 3 | G58: 3 | H58: 3 | I58: 3 | J58: 3 | K58: 3 | L58: 3 | M58: 3 | N58: 3 | O58: 3 | P58: 3 | Q58: 3 | R58: 3 | S58: 3 | T58: 3 | U58: 3 | V58: 3 | W58: 3 | X58: 3
A59: No. of items | E59: =E5 -> 10 | F59: =F5 -> 10 | G59: 10 | H59: 10 | I59: 10 | J59: 10 | K59: 10 | L59: 10 | M59: 10 | N59: 10 | O59: 10 | P59: 10 | Q59: 10 | R59: 10 | S59: 10 | T59: 10 | U59: 10 | V59: 10 | W59: 10 | X59: 10
A60: Mean | E60: =AVERAGE(E7:E57) -> 5 | F60: =AVERAGE(F7:F57) -> 7 | G60: 6.333333333 | H60: 5.333333333 | I60: 7.333333333 | J60: 6.333333333 | K60: 8 | L60: 8 | M60: 8 | N60: 7.333333333 | O60: 8 | P60: 7 | Q60: 8 | R60: 5.666666667 | S60: 8 | T60: 8.666666667 | U60: 8.333333333 | V60: 8.333333333 | W60: 7 | X60: 5.666666667
A61: Proficiency Level(PL) | E61: =(SUM(E7:E57)/(E58*E59))*100 -> 50 | F61: =(SUM(F7:F57)/(F58*F59))*100 -> 70 | G61: 63.33333333 | H61: 53.33333333 | I61: 73.33333333 | J61: 63.33333333 | K61: 80 | L61: 80 | M61: 80 | N61: 73.33333333 | O61: 80 | P61: 70 | Q61: 80 | R61: 56.66666667 | S61: 80 | T61: 86.66666667 | U61: 83.33333333 | V61: 83.33333333 | W61: 70 | X61: 56.66666667

Sheet Transmutation Table
A1: Initial Grade | B1: Transmuted Grade
A2: 92 | B2: =IF(A2=100,"100",IF(AND(A2>=98.4,A2<=99.99),"99",IF(AND(A2>=96.8,A2<=98.39),"98",IF(AND(A2>=95.2,A2<=96.79),"97",IF(AND(A2>=93.6,A2<=95.19),"96",IF(AND(A2>=92,A2<=93.59),"95",IF(AND(A2>=90.4,A2<=91.99),"94",IF(AND(A2>=88.8,A2<=90.39),"93",IF(AND(A2>=87.2,A2<=88.79),"92",IF(AND(A2>=85.6,A2<=87.19),"91",IF(AND(A2>=84,A2<=85.59),"90",IF(AND(A2>=82.4,A2<=83.99),"89",IF(AND(A2>=80.8,A2<=82.39),"88",IF(AND(A2>=79.2,A2<=80.79),"87",IF(AND(A2>=77.6,A2<=79.19),"86",IF(AND(A2>=76,A2<=77.59),"85",IF(AND(A2>=74,A2<=75.99),"84",IF(AND(A2>=72.8,A2<=74.39),"83",IF(AND(A2>=71.2,A2<=72.79),"82",IF(AND(A2>=69.6,A2<=71.19),"81",IF(AND(A2>=68,A2<=69.59),"80",IF(AND(A2>=66.4,A2<=67.99),"79",IF(AND(A2>=64.8,A2<=66.39),"78",IF(AND(A2>=63.2,A2<=64.79),"77",IF(AND(A2>=61.6,A2<=63.19),"76",IF(AND(A2>=60,A2<=61.59),"75",IF(AND(A2>=56,A2<=59.99),"74",IF(AND(A2>=52,A2<=55.99),"73",IF(AND(A2>=48,A2<=51.99),"72",IF(AND(A2>=44,A2<=47.99),"71",IF(AND(A2>=40,A2<=43.99),"70",IF(AND(A2>=36,A2<=39.99),"69",IF(AND(A2>=32,A2<=35.99),"68",IF(AND(A2>=28,A2<=31.99),"67",IF(AND(A2>=24,A2<=27.99),"66",IF(AND(A2>=20,A2<=23.99),"65",IF(AND(A2>=16,A2<=19.99),"64",IF(AND(A2>=12,A2<=15.99),"63",IF(AND(A2>=8,A2<=11.99),"62",IF(AND(A2>=4,A2<=7.99),"61",IF(AND(A2>=0,A2<=3.99),"60","Not Applicable"))))))))))))))))))))))))))))))))))))))))) -> 95
A3: Insert Initial grade with two decimal palces
A6: NOTE: Initial Grade must have two decimal for it to be transmuted transmuted
